Cogmind - Beta 11.1 @@@ ROGUE MODE // 2022.04.24 @ 09:21:43 Player: Rainynight Result: Self-destructed Performance ------------- Evolutions (5) 2500 Regions Visited (13) 2600 Robots Destroyed (44) 220 Value Destroyed (1241) 1241 Prototype IDs (29) 580 Alien Tech Used (0) 0 Bonus (1000) 1000 TOTAL SCORE: 8141 Bonus ------- Entered Garrisons 200 Used RIF Installer 500 Aligned with FarCom 300 Cogmind --------- Core Integrity 755/1000 Matter 177/300 Energy 1562/1600 System Corruption 0% Temperature Critical (650) Movement Flying (37) Location -5/Warlord Parts ------- > --- POWER (1) -------- (None) > --- PROPULSION (4) --- Cooled Cesium-ion Thruster Field Propulsion Drive > --- UTILITY (10) ----- Medium Storage Unit Superbattery Advanced Weight Redist. System Enhanced Optical Array Advanced Signal Interpreter Improved Terrain Scanner Advanced Terrain Scan Processor Improved Reaction Control System > --- WEAPON (2) ------- Spear > --- INVENTORY (10) --- Fission Core Light Fission Core Cooled Cesium-ion Thruster High-capacity Matter Pod (200) Advanced Weight Redist. System Transmission Jammer Advanced ECM Suite Improved Reaction Control System Relay Coupler [Duelist] (31) Shock Maul Peak State ------------ > --- POWER ------------ Micro Nuclear Core > --- PROPULSION ------- Cooled Cesium-ion Thruster Cooled Cesium-ion Thruster Field Propulsion Drive > --- UTILITY ---------- Medium Storage Unit Superbattery Advanced Weight Redist. System Enhanced Optical Array Improved Sensor Array Advanced Signal Interpreter Improved Terrain Scanner Advanced Terrain Scan Processor Improved Reaction Control System Relay Coupler [NC] > --- WEAPON ----------- Spear > --- INVENTORY -------- Fission Core Light Fission Core Cooled Cesium-ion Thruster High-capacity Matter Pod Advanced Weight Redist. System Transmission Jammer Advanced ECM Suite Improved Reaction Control System Relay Coupler [Duelist] Shock Maul [Rating: 70] Favorites ----------- Power Light Ion Engine Engine Light Ion Engine Power Core Fission Core Propulsion Cooled Cesium-ion Thruster Wheel Armored Wheel Flight Unit Cooled Cesium-ion Thruster Utility Medium Storage Unit Device Improved Sensor Array Storage Medium Storage Unit Processor Signal Interpreter Hackware Relay Coupler [NC] Weapon Improved Datajack Energy Gun Medium Laser Ballistic Gun Light Assault Rifle Impact Weapon Power Maul Slashing Weapon Mining Claw Piercing Weapon Spear Special Melee Weapon Improved Datajack Build | -11 -10 -10 -10 -9 -8 -7 -7 -7 -6 -5 -5 -5 -5 ------- Run | Scr Mat Min Exi Min Mat Fac Gar Fac Fac Fac Upp Upp War Slots Evolved 10 | . . . . . 4 2 . . 2 2 . . . Power . | . . . . . . . . . . . . . . Propulsion 2 | . . . . . 2 . . . . . . . . Utility 8 | . . . . . 2 2 . . 2 2 . . . Weapon . | . . . . . . . . . . . . . . Parts Attached 68 | 6 13 2 . . 12 3 . 3 14 14 1 . . Power 9 | 1 2 . . . 2 . . . 1 3 . . . Engine 6 | 1 2 . . . 2 . . . . 1 . . . Core 3 | . . . . . . . . . 1 2 . . . Reactor . | . . . . . . . . . . . . . . Propulsion 13 | 2 4 . . . 1 . . . 4 2 . . . Treads . | . . . . . . . . . . . . . . Leg . | . . . . . . . . . . . . . . Wheel 4 | 2 2 . . . . . . . . . . . . Hover . | . . . . . . . . . . . . . . Flight 9 | . 2 . . . 1 . . . 4 2 . . . Utility 26 | 1 3 . . . 4 2 . 2 6 7 1 . . Device 13 | . 2 . . . 2 1 . 1 4 3 . . . Storage 4 | 1 1 . . . 1 . . . . . 1 . . Processor 6 | . . . . . 1 1 . . 1 3 . . . Hackware 3 | . . . . . . . . 1 1 1 . . . Protection . | . . . . . . . . . . . . . . Artifact . | . . . . . . . . . . . . . . Weapon 20 | 2 4 2 . . 5 1 . 1 3 2 . . . Energy Gun 7 | 2 2 . . . 3 . . . . . . . . Energy Cannon . | . . . . . . . . . . . . . . Ballistic Gun 3 | . 2 1 . . . . . . . . . . . Ballistic Cannon . | . . . . . . . . . . . . . . Launcher . | . . . . . . . . . . . . . . Special Weapon . | . . . . . . . . . . . . . . Impact Weapon 4 | . . . . . 1 . . 1 1 1 . . . Slashing Weapon 1 | . . 1 . . . . . . . . . . . Piercing Weapon 1 | . . . . . . . . . . 1 . . . Special Melee Weapon 4 | . . . . . 1 1 . . 2 . . . . Unidentified Prototypes . | . . . . . . . . . . . . . . Parts Lost 12 | . . . . . . . 1 . 4 2 1 . 4 Power 1 | . . . . . . . . . . . . . 1 Propulsion 4 | . . . . . . . . . 1 1 1 . 1 Utility 6 | . . . . . . . 1 . 3 . . . 2 Weapon 1 | . . . . . . . . . . 1 . . . Highest Loss Streak 4 | . . . . . . . 1 . 3 2 1 . 4 To Critical Strikes . | . . . . . . . . . . . . . . Average Slot Usage (%) 81 | . 98 85 85 85 55 73 74 70 77 87 92 88 85 Engine 6 | . 14 14 14 14 9 7 7 7 3 . . . . Core 1 | . . . . . . . . . 2 5 5 5 5 Wheel 4 | . 25 . . . . . . . . . . . . Flight 11 | . 2 28 28 28 9 7 7 7 7 23 21 17 17 Device 15 | . 13 14 14 14 11 20 20 12 12 19 23 23 23 Storage 8 | . 14 14 14 14 8 7 7 7 6 5 7 11 11 Processor 10 | . . . . . 2 15 15 15 16 17 17 17 17 Hackware 4 | . . . . . . . . 3 12 8 9 5 2 Energy Gun 5 | . 23 . . . 12 . . . . . . . . Ballistic Gun 2 | . 4 14 14 14 2 . . . . . . . . Impact Weapon 2 | . . . . . . 7 7 7 6 1 . . . Special Melee Weapon 2 | . . . . . . 7 7 7 6 . . . . Naked Turns . | . . . . . . . . . . . . . . Heaviest Build 26 | 12 19 14 14 14 21 20 20 19 26 26 26 26 26 Greatest Support 56 | 26 28 14 14 14 56 50 50 50 50 34 28 28 28 Greatest Overweight (x) 3 | 1 3 . . . . . . . . 1 . . . Average Overweight (x) . | . . . . . . . . . . . . . . Largest Inventory Capacity 10 | 8 10 10 10 10 10 10 10 10 10 10 10 10 10 Average Capacity 9 | 7 8 10 10 10 9 10 10 10 10 10 10 10 10 Most Carried 10 | . 10 10 10 10 10 10 10 10 10 10 10 10 10 Average Carried 8 | . 6 10 9 9 9 9 9 9 9 9 9 9 10 Final Capacity 10 | 8 10 10 10 10 10 10 10 10 10 10 10 10 10 Final Carried 10 | . 10 10 10 10 10 10 10 10 7 9 9 10 10 Class Distribution -------------------- 47% | Mutant 35% | Scout 16% | Scavenger-Mutant Dominant Class ---------------- Mutant | -10/Materials Scavenger-Mutant | -10/Mines Scavenger-Mutant | -10/Exiles Scavenger-Mutant | -9/Mines Scavenger-Mutant | -8/Materials Mutant | -7/Factory Mutant | -7/Garrison Mutant | -7/Factory Scout | -6/Factory Scout | -5/Factory Scout | -5/Upper Caves Scout | -5/Upper Caves Scout | -5/Warlord Resources | -11 -10 -10 -10 -9 -8 -7 -7 -7 -6 -5 -5 -5 -5 ----------- Run | Scr Mat Min Exi Min Mat Fac Gar Fac Fac Fac Upp Upp War Matter Collected 970 | 217 249 22 . 52 154 3 80 . 73 97 . 23 . Remotely . | . . . . . . . . . . . . . . Salvage Created 1457 | . 481 . . . 296 31 . . 336 313 . . . Parts 69 | . 36 . . . 7 . . . 20 6 . . . Haulers Intercepted 3 | . 1 . . . 1 . . . 1 . . . . Recyclers Shooed 2 | . 1 . . . 1 . . . . . . . . Parts Field Recycled . | . . . . . . . . . . . . . . Retrieved Matter . | . . . . . . . . . . . . . . Parts Self-Destructed 2 | . . . . . . . . . . . . 2 . Prevented 1 | . . . . . . . . . . . . 1 . Kills | -11 -10 -10 -10 -9 -8 -7 -7 -7 -6 -5 -5 -5 -5 ------- Run | Scr Mat Min Exi Min Mat Fac Gar Fac Fac Fac Upp Upp War Combat Hostiles Destroyed 18 | . 11 . . . 3 . . . 4 . . . . Guns 14 | . 11 . . . 3 . . . . . . . . AOE 4 | . . . . . . . . . 4 . . . . Classes Destroyed 9 | . 6 . . . 1 . . . 1 1 . . . Worker 10 | . 3 . . . 1 . . . 4 2 . . . Builder 1 | . 1 . . . . . . . . . . . . Tunneler 2 | . . . . . . . . . 1 1 . . . Hauler 3 | . 1 . . . 1 . . . 1 . . . . Recycler 5 | . . . . . 2 . . . 1 2 . . . Operator 1 | . . . . . . . . . . 1 . . . Watcher 4 | . 2 . . . . 1 . . 1 . . . . Swarmer 12 | . 5 . . . 3 . . . 4 . . . . Grunt 6 | . 6 . . . . . . . . . . . . Best Kill Streak 10 | . 7 . . . 3 1 . . 10 3 . . . Combat Bots Only 6 | . 6 . . . 2 . . . 4 . . . . Max Kills in Single Turn 8 | . 2 . . . 2 1 . . 8 1 . . . Gunslinging . | . . . . . . . . . . . . . . Exploded 2 | . . . . . . . . . 2 . . . . Melee . | . . . . . . . . . . . . . . Uniques/NPCs Destroyed . | . . . . . . . . . . . . . . Combat | -11 -10 -10 -10 -9 -8 -7 -7 -7 -6 -5 -5 -5 -5 -------- Run | Scr Mat Min Exi Min Mat Fac Gar Fac Fac Fac Upp Upp War Damage Taken 2343 | . 319 . . . 139 . 471 . 763 140 79 70 362 Core 508 | . 56 . . . 37 . 46 . 124 47 28 54 116 Absorbed by Shields 16 | . . . . . . . 16 . . . . . . Regen/Repaired (Parts) 92 | . . . . . 62 . . 14 16 . . . . Core Remaining (%) 89 | 100 . . . 77 93 . . 93 85 . . . . Volleys Fired 60 | . 45 . . . 15 . . . . . . . . Largest 2 | . 2 . . . 2 . . . . . . . . Hottest 119 | . 90 . . . 119 . . . . . . . . Shots Fired 116 | . 88 . . . 28 . . . . . . . . Gun 116 | . 88 . . . 28 . . . . . . . . Cannon . | . . . . . . . . . . . . . . Launcher . | . . . . . . . . . . . . . . Special . | . . . . . . . . . . . . . . Kinetic 2 | . . . . . 2 . . . . . . . . Thermal 111 | . 85 . . . 26 . . . . . . . . Explosive . | . . . . . . . . . . . . . . Electromagnetic 3 | . 3 . . . . . . . . . . . . Robot Hit Streak 5 | . 5 . . . 5 . . . . . . . . Robot Miss Streak 4 | . 3 . . . 4 . . . . . . . . Penetration Max . | . . . . . . . . . . . . . . Secondary Targets 1 | . 1 . . . . . . . . . . . . Max Gunslinging Chain 1 | . 1 . . . . . . . . . . . . Shots Hit Robots 105 | . 54 . . . 17 5 . 4 19 6 . . . Core Hits 44 | . 27 . . . 7 . . . 8 2 . . . Critical Kills 1 | . . . . . . . . . 1 . . . . Critical Parts Destroyed 1 | . . . . . . . . . . 1 . . . Critical Strikes 7 | . 3 . . . 2 . . . 1 1 . . . Burn 5 | . 3 . . . 2 . . . . . . . . Smash 2 | . . . . . . . . . 1 1 . . . Melee Attacks 53 | . . . . . . 5 5 6 21 16 . . . Impact 16 | . . . . . . 1 3 . 2 10 . . . Slashing . | . . . . . . . . . . . . . . Piercing 6 | . . . . . . . . . . 6 . . . Sneak Attacks 25 | . . . . . . 3 . 3 14 5 . . . Combat Hostiles 4 | . . . . . . . . . 4 . . . . Follow-up Attacks . | . . . . . . . . . . . . . . Damage Inflicted 2936 | . 719 . . . 274 58 . . 1199 686 . . . Guns 955 | . 681 . . . 274 . . . . . . . . Cannons . | . . . . . . . . . . . . . . Explosions 1061 | . 38 . . . . . . . 1023 . . . . Melee 920 | . . . . . . 58 . . 176 686 . . . Ramming . | . . . . . . . . . . . . . . Kinetic 8 | . . . . . 8 . . . . . . . . Thermal 1657 | . 683 . . . 266 . . . 708 . . . . Explosive 315 | . . . . . . . . . 315 . . . . Electromagnetic 36 | . 36 . . . . . . . . . . . . Impact 920 | . . . . . . 58 . . 176 686 . . . Slashing . | . . . . . . . . . . . . . . Piercing . | . . . . . . . . . . . . . . Highest Corruption 1 | . . . . . . 1 1 1 . . . . . Average Corruption 1 | . . . . . . 1 1 1 . . . . . Corruption Purged . | . . . . . . . . . . . . . . Corruption Blocked . | . . . . . . . . . . . . . . Effects 3 | . . . . . . . 3 . . . . . . Matter Fused 2 | . . . . . . . 2 . . . . . . Heat Flow Errors 1 | . . . . . . . 1 . . . . . . Overload Shots . | . . . . . . . . . . . . . . Overflow Damage 552 | . . . . . . 36 . . 215 301 . . . Projectiles . | . . . . . . . . . . . . . . Explosions 180 | . . . . . . . . . 180 . . . . Melee 372 | . . . . . . 36 . . 35 301 . . . Knockbacks 3 | . . . . . . 1 . . . 2 . . . Impact 3 | . . . . . . 1 . . . 2 . . . Kinetic . | . . . . . . . . . . . . . . Secondary . | . . . . . . . . . . . . . . Self-Inflicted Damage 149 | . 33 . . . . . . . 116 . . . . Shots 3 | . 1 . . . . . . . 2 . . . . Rammed . | . . . . . . . . . . . . . . Targets Rammed . | . . . . . . . . . . . . . . Kicked . | . . . . . . . . . . . . . . Crushed . | . . . . . . . . . . . . . . Highest Temperature 710 | . 238 . . . 241 . 208 . 206 . . . 710 Average Temperature 97 | . 78 . . . 112 . 99 . 103 . . . 559 Received Heat Transfer 240 | . 102 . . . 9 . 93 . 27 . 9 . . Effects 7 | . 3 . . . 3 . . . . . . . 1 Interference 6 | . 3 . . . 3 . . . . . . . . Matter Decay 1 | . . . . . . . . . . . . . 1 Siege Activations . | . . . . . . . . . . . . . . Robots Corrupted . | . . . . . . . . . . . . . . Combat Hostiles . | . . . . . . . . . . . . . . Parts Fried 11 | . . . . . . 2 . . 2 7 . . . Impact Corruptions 11 | . . . . . . 2 . . 1 8 . . . Robots Melted . | . . . . . . . . . . . . . . Combat Hostiles . | . . . . . . . . . . . . . . Parts Melted 9 | . 5 . . . 4 . . . . . . . . Heat Transferred 3283 | . 2006 . . . 777 . . . 500 . . . . Parts Sabotaged . | . . . . . . . . . . . . . . Parts Stolen . | . . . . . . . . . . . . . . Parts Stripped . | . . . . . . . . . . . . . . Power Chain Reactions 1 | . 1 . . . . . . . . . . . . Missiles Intercepted . | . . . . . . . . . . . . . . Alert | -11 -10 -10 -10 -9 -8 -7 -7 -7 -6 -5 -5 -5 -5 ------- Run | Scr Mat Min Exi Min Mat Fac Gar Fac Fac Fac Upp Upp War Peak Influence 748 | . 262 4 . . 268 173 346 226 748 407 . . . Initial 320 | . . 4 . . . 121 121 181 110 320 . . . Average 257 | . 109 4 . . 122 140 212 187 552 297 . . . Maximum Alert Level 3 | . 1 . . . 1 . 1 1 3 2 . . . Low Security (%) 57 | 100 92 100 . 100 60 100 56 95 19 18 . . . Level 1 21 | . 7 . . . 39 . 43 4 . 80 . . . Level 2 13 | . . . . . . . . . 50 . . . . Level 3 7 | . . . . . . . . . 29 . . . . Level 4 . | . . . . . . . . . . . . . . Level 5 . | . . . . . . . . . . . . . . High Security . | . . . . . . . . . . . . . . Max Security . | . . . . . . . . . . . . . . Squads Dispatched 12 | . 3 . . . . . . 1 4 3 . 1 . Investigation 9 | . 2 . . . . . . 1 3 3 . . . Extermination . | . . . . . . . . . . . . . . Reinforcement 2 | . 1 . . . . . . . 1 . . . . Assault 1 | . . . . . . . . . . . . 1 . Garrison . | . . . . . . . . . . . . . . Intercept . | . . . . . . . . . . . . . . Searches Triggered . | . . . . . . . . . . . . . . Construction Impeded . | . . . . . . . . . . . . . . Haulers Reinforced . | . . . . . . . . . . . . . . Active Scanning Responses . | . . . . . . . . . . . . . . Cargo Convoy Interrupts . | . . . . . . . . . . . . . . Stealth | -11 -10 -10 -10 -9 -8 -7 -7 -7 -6 -5 -5 -5 -5 --------- Run | Scr Mat Min Exi Min Mat Fac Gar Fac Fac Fac Upp Upp War Distress Signals 3 | . . . . . 1 . . . 1 1 . . . Communications Jammed . | . . . . . . . . . . . . . . Distress Signals . | . . . . . . . . . . . . . . Times Spotted 109 | . 16 . . . 9 1 18 2 26 12 5 15 5 Peak Tracking Total 14 | . 4 . . . 6 1 13 2 10 6 3 14 6 Tactical Retreats 19 | . 1 . . . 3 . 3 . 6 3 . 3 . Traps | -11 -10 -10 -10 -9 -8 -7 -7 -7 -6 -5 -5 -5 -5 ------- Run | Scr Mat Min Exi Min Mat Fac Gar Fac Fac Fac Upp Upp War Traps Triggered 11 | . 2 . . . 1 1 3 . . 1 . . 3 Indirectly . | . . . . . . . . . . . . . . Trap Hack Attempts . | . . . . . . . . . . . . . . Triggered . | . . . . . . . . . . . . . . Disarmed . | . . . . . . . . . . . . . . Reprogrammed . | . . . . . . . . . . . . . . Reused . | . . . . . . . . . . . . . . Traps Extracted . | . . . . . . . . . . . . . . Installed 4 | . . 4 . . . . . . . . . . . Triggered 2 | . . . . . . . . . . . 1 1 . Machines | -11 -10 -10 -10 -9 -8 -7 -7 -7 -6 -5 -5 -5 -5 ---------- Run | Scr Mat Min Exi Min Mat Fac Gar Fac Fac Fac Upp Upp War Machines Disabled 26 | . . . . . 1 1 2 . 22 . . . . Max in Single Turn 21 | . . . . . 1 1 1 . 21 . . . . Garrison Relay 2 | . . . . . . . 2 . . . . . . Machines Sabotaged . | . . . . . . . . . . . . . . Garrisons Compromised . | . . . . . . . . . . . . . . Overloaded Fab Kills . | . . . . . . . . . . . . . . Hacking | -11 -10 -10 -10 -9 -8 -7 -7 -7 -6 -5 -5 -5 -5 --------- Run | Scr Mat Min Exi Min Mat Fac Gar Fac Fac Fac Upp Upp War Machines Accessed 31 | . 5 . 1 . 3 2 . 3 11 6 . . . Terminals 12 | . 4 . . . 1 . . . 6 1 . . . Fabricators 4 | . . . . . . . . 1 1 2 . . . Repair Stations 6 | . . . . . 1 . . 1 3 1 . . . Recycling Units 6 | . 1 . . . 1 1 . 1 1 1 . . . Scanalyzers 1 | . . . . . . . . . . 1 . . . Garrison Access 1 | . . . . . . 1 . . . . . . . Total Hacks 79 | . 15 . 1 . 10 3 . 11 24 15 . . . Successful 41 | . 9 . 1 . 6 3 . 5 13 4 . . . Failed 38 | . 6 . . . 4 . . 6 11 11 . . . Catastrophic 7 | . . . . . . . . 2 4 1 . . . Database Lockouts . | . . . . . . . . . . . . . . Manual 32 | . 8 . 1 . 3 1 . 7 8 4 . . . Terminals 24 | . 13 . . . 2 . . . 8 1 . . . Fabricators 14 | . . . . . . . . 6 3 5 . . . Repair Stations 20 | . . . . . 3 . . 3 11 3 . . . Recycling Units 17 | . 2 . . . 5 2 . 2 2 4 . . . Scanalyzers 2 | . . . . . . . . . . 2 . . . Garrison Access 1 | . . . . . . 1 . . . . . . . Terminal Hacks 12 | . 7 . 1 . 1 . . . 2 1 . . . Robot Analysis 3 | . 2 . . . 1 . . . . . . . . Prototype ID Bank 2 | . 2 . . . . . . . . . . . . Open DSF 1 | . . . . . . . . . 1 . . . . Unreport Threat 3 | . 1 . . . . . . . 1 1 . . . Locate Traps 2 | . 2 . . . . . . . . . . . . EX-Prototype ID Bank 1 | . . . 1 . . . . . . . . . . Fabricator Hacks 1 | . . . . . . . . . 1 . . . . Network Status 1 | . . . . . . . . . 1 . . . . Repair Station Hacks 12 | . . . . . 2 . . 3 6 1 . . . Scan Component 9 | . . . . . 1 . . 2 5 1 . . . Repair 3 | . . . . . 1 . . 1 1 . . . . Recycling Unit Hacks 7 | . 1 . . . 2 1 . 1 1 1 . . . Report Inventory 6 | . 1 . . . 1 1 . 1 1 1 . . . Retrieve Components 1 | . . . . . 1 . . . . . . . . Scanalyzer 1 | . . . . . . . . . . 1 . . . Insert Component 1 | . . . . . . . . . . 1 . . . Garrison Access Hacks 1 | . . . . . . 1 . . . . . . . Unlock Access 1 | . . . . . . 1 . . . . . . . Unauthorized Hacks 7 | . 1 . . . 1 1 . 1 3 . . . . Terminals 2 | . . . . . . . . . 2 . . . . Botnet 1 | . . . . . . . . . 1 . . . . Detonate 1 | . . . . . . . . . 1 . . . . Fabricators . | . . . . . . . . . . . . . . Repair Stations . | . . . . . . . . . . . . . . Recycling Units 5 | . 1 . . . 1 1 . 1 1 . . . . Reject 5 | . 1 . . . 1 1 . 1 1 . . . . Scanalyzers . | . . . . . . . . . . . . . . Garrison Access . | . . . . . . . . . . . . . . Data Cores Recovered 1 | . . . . . . . . . . 1 . . . Used . | . . . . . . . . . . . . . . Hacking Detections 22 | . 4 . . . 2 1 . 2 8 5 . . . Full Trace Events 8 | . 1 . . . . . . 1 3 3 . . . Feedback Events . | . . . . . . . . . . . . . . Feedback Blocked . | . . . . . . . . . . . . . . Robot Schematics Acquired . | . . . . . . . . . . . . . . Robots Built . | . . . . . . . . . . . . . . Authchips . | . . . . . . . . . . . . . . Time . | . . . . . . . . . . . . . . Total Robot Build Rating . | . . . . . . . . . . . . . . Part Schematics Acquired . | . . . . . . . . . . . . . . Parts Built . | . . . . . . . . . . . . . . Authchips . | . . . . . . . . . . . . . . Time . | . . . . . . . . . . . . . . Total Part Build Rating . | . . . . . . . . . . . . . . Parts Repaired 3 | . . . . . 1 . . 1 1 . . . . Time 70 | . . . . . 13 . . 38 19 . . . . Parts Recycled . | . . . . . . . . . . . . . . Recycled Matter . | . . . . . . . . . . . . . . Retrieved Matter . | . . . . . . . . . . . . . . Retrieved Components 1 | . . . . . 1 . . . . . . . . Parts Scanalyzed 1 | . . . . . . . . . . 1 . . . Part Schematics Acquired . | . . . . . . . . . . . . . . Parts Damaged . | . . . . . . . . . . . . . . Bothacking | -11 -10 -10 -10 -9 -8 -7 -7 -7 -6 -5 -5 -5 -5 ------------ Run | Scr Mat Min Exi Min Mat Fac Gar Fac Fac Fac Upp Upp War Used RIF Installer 1 | . . . . . . . 1 . . . . . . Robots Hacked 14 | . . . . . . 1 . 2 11 . . . . Non-combat 14 | . . . . . . 1 . 2 11 . . . . Combat . | . . . . . . . . . . . . . . Robot Hacks Applied 15 | . . . . . . 1 . 2 12 . . . . parse_system 1 | . . . . . . 1 . . . . . . . no_distress 1 | . . . . . . . . . 1 . . . . generate_echo 1 | . . . . . . . . . 1 . . . . start_evac 1 | . . . . . . . . . 1 . . . . find_fabricator 1 | . . . . . . . . 1 . . . . . drop_inventory 1 | . . . . . . . . . 1 . . . . find_recycling 1 | . . . . . . . . . 1 . . . . ignore_parts 2 | . . . . . . . . 1 1 . . . . deconstruct_bot 1 | . . . . . . . . . 1 . . . . link_fov 1 | . . . . . . . . . 1 . . . . overload_power 4 | . . . . . . . . . 4 . . . . Relay Couplers Released 6 | . . . . . . . 6 . . . . . . Machine Destruction 6 | . . . . . . . 6 . . . . . . Attached 2 | . . . . . . . . 1 1 . . . . Fabnet Peak Effective % . | . . . . . . . . . . . . . . Robots Rewired 1 | . . . . . . . . . 1 . . . . Allies Hacked . | . . . . . . . . . . . . . . Hacks Repelled . | . . . . . . . . . . . . . . Allies | -11 -10 -10 -10 -9 -8 -7 -7 -7 -6 -5 -5 -5 -5 -------- Run | Scr Mat Min Exi Min Mat Fac Gar Fac Fac Fac Upp Upp War Total Allies 2 | . . 1 . . . . . . 1 . . . . Largest Group 1 | . . 1 . . . . . . 1 . . . . Highest-Rated Group 31 | . . 31 . . . . . . 29 . . . . Highest-Rated Ally 31 | . . 31 . . . . . . 29 . . . . Total Orders . | . . . . . . . . . . . . . . Ally Attacks 3 | . . . . . . . . . 3 . . . . Total Damage 41 | . . . . . . . . . 41 . . . . Kills . | . . . . . . . . . . . . . . Allies Corrupted . | . . . . . . . . . . . . . . Allies Melted . | . . . . . . . . . . . . . . Intel | -11 -10 -10 -10 -9 -8 -7 -7 -7 -6 -5 -5 -5 -5 ------- Run | Scr Mat Min Exi Min Mat Fac Gar Fac Fac Fac Upp Upp War Robot Analysis Total 3 | . 2 . . . 1 . . . . . . . . Derelict Logs Recovered 1 | . . . . . . . . . . . 1 . . Drone Launches . | . . . . . . . . . . . . . . Drone Recoveries . | . . . . . . . . . . . . . . Exploration | -11 -10 -10 -10 -9 -8 -7 -7 -7 -6 -5 -5 -5 -5 ------------- Run | Scr Mat Min Exi Min Mat Fac Gar Fac Fac Fac Upp Upp War Turns Passed 2683 | 36 513 46 86 82 309 113 205 153 611 316 94 99 20 Spaces Moved 4172 | 31 335 101 220 119 267 200 361 175 1067 629 300 306 61 Core 1 | 1 . . . . . . . . . . . . . Treads . | . . . . . . . . . . . . . . Legs . | . . . . . . . . . . . . . . Wheels 332 | 30 302 . . . . . . . . . . . . Hover . | . . . . . . . . . . . . . . Flight 3839 | . 33 101 220 119 267 200 361 175 1067 629 300 306 61 Fastest Speed 14 | 50 37 37 37 37 50 50 50 50 14 26 29 32 32 Average Speed 45 | 87 92 37 37 37 50 50 50 50 45 28 29 32 32 Slowest Speed 280 | 95 280 37 37 37 50 50 50 50 50 109 32 32 37 Overloaded Moves 24 | . . . . . . . . . 24 . . . . Propulsion Burnouts . | . . . . . . . . . . . . . . Robots Hopped 29 | . . 2 . 2 1 1 10 1 4 2 2 4 . Cave-ins Triggered . | . . . . . . . . . . . . . . Exploration Rate (%) 34 | 4 69 28 62 30 28 7 57 5 29 17 64 56 22 Regions Visited 13 Branch Regions 6 Pre-discovered Areas 1 | . . . . 1 . . . . . . . . . Known Exits Taken 7 | . . . . . 1 1 . 1 1 1 1 1 . Unknown Exits Taken 5 | 1 1 1 1 1 . . . . . . . . . Scrap Searched 7 | . . 1 . 1 . . . . . . 2 3 . Spaces Dug 6 | . . . . . . . . . . 6 . . . Terrain Destroyed 55 | . 1 . . . . . . . 48 6 . . . Melee 6 | . . . . . . . . . . 6 . . . Projectile . | . . . . . . . . . . . . . . AOE 49 | . 1 . . . . . . . 48 . . . . Terrain Rammed . | . . . . . . . . . . . . . . Walls Destroyed . | . . . . . . . . . . . . . . Machines Disabled . | . . . . . . . . . . . . . . Actions | -11 -10 -10 -10 -9 -8 -7 -7 -7 -6 -5 -5 -5 -5 --------- Run | Scr Mat Min Exi Min Mat Fac Gar Fac Fac Fac Upp Upp War Total 4790 | 36 452 106 226 155 419 206 370 238 1182 736 301 302 61 Wait 351 | . 29 . . 35 104 . 1 54 63 64 1 . . Move 4101 | 30 334 96 219 114 264 197 340 172 1058 624 295 297 61 Hop 26 | . . 2 . 2 1 1 7 1 4 2 2 4 . Pick Up 51 | . 12 . 2 2 10 . 3 1 12 7 1 1 . Fast Attach 32 | 6 7 1 . . 9 1 . 1 3 4 . . . Attach 18 | . 1 . . . 1 1 . 1 8 5 1 . . Detach 13 | . 5 1 . . 2 . . . . 4 1 . . Swap 18 | . 5 1 . . 2 1 . 1 3 5 . . . Drop 52 | . 14 1 5 2 11 . 3 1 10 5 . . . Fire 60 | . 45 . . . 15 . . . . . . . . Melee 53 | . . . . . . 5 5 6 21 16 . . . Ram . | . . . . . . . . . . . . . . Kick . | . . . . . . . . . . . . . . Crush . | . . . . . . . . . . . . . . Escape Stasis 11 | . . . . . . . 11 . . . . . . Rewire . | . . . . . . . . . . . . . . Trap 4 | . . 4 . . . . . . . . . . . Miscellaneous . | . . . . . . . . . . . . . . Route ------- -11/Scrapyard -10/Materials (discovered 4 exits: [*Mat x2] / [*Min x2]) -10/Mines -10/Exiles -9/Mines -8/Materials -7/Factory -7/Garrison (discovered 2 exits: *Fac x2) -7/Factory -6/Factory -5/Factory -5/Upper Caves -5/Upper Caves (discovered 2 exits: *Fac / *War) -5/Warlord History --------- Turn | Location | Event 14 | -11/Scrapyard | Discovered new exit (range 15) 37 | -11/Scrapyard | Entered Materials 161 | -10/Materials | Discovered new exit (range 16) 278 | -10/Materials | Discovered new exit (range 16) 300 | -10/Materials | Build established: Mutant 340 | -10/Materials | Discovered new exit (range 13) 434 | -10/Materials | Discovered new exit (range 16) 550 | -10/Materials | Entered Mines 553 | -10/Mines | Received a Mining Laser from a helpful Derelict 561 | -10/Mines | Found a hidden stash of uninstalled traps 594 | -10/Mines | Deemed a non-threat by the Exiles lab entrance 594 | -10/Mines | Discovered new exit (range 5) 596 | -10/Mines | Entered Exiles 606 | -10/Exiles | Met 8R-AWN 612 | -10/Exiles | Met EX-HEX 624 | -10/Exiles | Met EX-BIN 628 | -10/Exiles | Aligned with FarCom system 629 | -10/Exiles | Given EX-Vault access code 638 | -10/Exiles | Opened EX-Vault 643 | -10/Exiles | Found Flying Fortress v7 646 | -10/Exiles | Found Superbattery 655 | -10/Exiles | Warned to stay clear of 0b10 Research branches 665 | -10/Exiles | Met EX-DEC 678 | -10/Exiles | Discovered new exit (range 10) 682 | -10/Exiles | Stole two prototypes: Flying Fortress v7, Superbattery 682 | -10/Exiles | Entered Mines 696 | -9/Mines | Assembled infested the area 711 | -9/Mines | Learned location of Storage (-9) 762 | -9/Mines | Discovered new exit (range 7) 764 | -9/Mines | Entered Materials 764 | -8/Materials | Evolved 4 slots: Propulsion x2, Utility x2 789 | -8/Materials | Repaired Med. Storage Unit 1049 | -8/Materials | Discovered new exit (range 16) 1073 | -8/Materials | Identified exit to Factory 1073 | -8/Materials | Entered Factory 1073 | -7/Factory | Evolved 2 slots: Utility x2 1075 | -7/Factory | FarCom data flow suspended 1185 | -7/Factory | Identified exit to Garrison 1186 | -7/Factory | Entered Garrison 1246 | -7/Garrison | Garrison Relay disabled 1258 | -7/Garrison | Triggered checkpoint 1307 | -7/Garrison | Triggered checkpoint 1311 | -7/Garrison | Garrison Relay disabled 1333 | -7/Garrison | Discovered new exit (range 12) 1372 | -7/Garrison | Triggered checkpoint 1380 | -7/Garrison | Discovered new exit (range 8) 1385 | -7/Garrison | Identified exit to Factory 1388 | -7/Garrison | Installed Relay Interface Framework 1391 | -7/Garrison | Entered Factory 1471 | -7/Factory | Discovered new exit (range 15) 1482 | -7/Factory | Identified exit to Factory 1533 | -7/Factory | Repaired Imp. Sensor Array 1544 | -7/Factory | Entered another Factory area 1544 | -6/Factory | Evolved 2 slots: Utility x2 1798 | -6/Factory | Repaired Imp. Sensor Array 2095 | -6/Factory | Build established: Scout 2127 | -6/Factory | Lost 3 parts (1n2u) 2148 | -6/Factory | Discovered new exit (range 12) 2151 | -6/Factory | Identified exit to Factory 2155 | -6/Factory | Entered another Factory area 2155 | -5/Factory | Evolved 2 slots: Utility x2 2453 | -5/Factory | Discovered new exit (range 20) 2458 | -5/Factory | Identified exit to Upper Caves 2471 | -5/Factory | Entered Upper Caves 2471 | -5/Upper Caves | Spotted RM-IMF(f) 2471 | -5/Upper Caves | Spotted 7D-9VW(f) 2472 | -5/Upper Caves | Encountered a Master Thief 2472 | -5/Upper Caves | Encountered a Master Thief 2494 | -5/Upper Caves | Learned Factory emergency access door positions 2511 | -5/Upper Caves | Spotted B-75 Beast 2515 | -5/Upper Caves | Attracted the attention of an 0b10 checkpoint 2563 | -5/Upper Caves | Discovered new exit (range 6) 2564 | -5/Upper Caves | Identified exit to Upper Caves 2565 | -5/Upper Caves | Entered another Upper Caves area 2565 | -5/Upper Caves | Discovered new exit (range 10) 2568 | -5/Upper Caves | Identified exit to Factory 2638 | -5/Upper Caves | Spotted N1-KB6(f) 2639 | -5/Upper Caves | Spotted ZU-3BX(f) 2640 | -5/Upper Caves | Encountered a Master Thief 2641 | -5/Upper Caves | Discovered new exit (range 13) 2641 | -5/Upper Caves | Encountered a Master Thief 2646 | -5/Upper Caves | Spotted JB-MO8(f) 2654 | -5/Upper Caves | Attracted the attention of an 0b10 outpost 2654 | -5/Upper Caves | Encountered a Master Thief 2655 | -5/Upper Caves | Spotted ZA-6KW(f) 2656 | -5/Upper Caves | Encountered a Master Thief 2660 | -5/Upper Caves | Spotted 4D-ABH(f) 2661 | -5/Upper Caves | Encountered a Master Thief 2664 | -5/Upper Caves | Identified exit to Warlord 2664 | -5/Upper Caves | Entered Warlord 2678 | -5/Warlord | RIF detected upon attempting to enter Warlord's base 2678 | -5/Warlord | Attacked by Warlord forces 2681 | -5/Warlord | Spotted PB-IQB(B) 2681 | -5/Warlord | Spotted QJ-L2A(B) 2684 | -5/Warlord | Self-destructed Last Messages --------------- 02663_ Slug penetrates Wall. 02664_ EXIT=IDENTIFIED: WARLORD LOCATION=WARLORD GOAL=ESCAPE 02676_ System quarantine in progress... 02676_ ANNOUNCEMENT: Quarantine Array scanned 1 system, cleaned 0. 02678_ ANNOUNCEMENT: Internal threat detected, destroy unregistered bots on sight. 02679_ Triggered Fire Trap. 02679_ Burning plasma bursts from the floor. 02679_ Relay Coupler [NC] destroyed. 02680_ Triggered Fire Trap. 02680_ Burning plasma bursts from the floor. 02681_ Triggered Fire Trap. 02681_ Burning plasma bursts from the floor. 02681_ Mic. Nuclear Core destroyed. 02681_ Cld. Cesium-ion Thruster destroyed. 02683_ Overheating: Matter decay (-51). 02684_ Knocked back. 02684_ Imp. Sensor Array destroyed. Map ----- +----------------------------------------------------+ | ?????????????????????????????????????????????????? | | ?????????????????????????????????????????????????? | | ?????????????????????????????????????????????????? | | ?????????????????????????????????????????????????? | | ?????????????????????????????????????????????????? | | ?????????????????????????????????????????????????? | | ?????????????????????????????????????????????????? | | ?????????????????????????????????????????????????? | | ?????????????????????????????????????????????????? | | ??????????????????????????###+###????????????????? | | ????????????????????????### #?????????????#?#? | | ????????????????????????? #????#??#????????? | | ????????????????????????? #??????????#?????? | | ?????????????????????????? #????##??????????? | | ???????????????????????#??? ?????#""#????????? | | ???????????????????????????# #?????#""#??????##? | | ?????????????????????????#?# #?????#""#??#?#???? | | ???????????????? ??????????# #???###""#????#?#?? | | ??????????????##?????????#?# #??#?##""###???#??? | | ????????????????????????#### #######""#####????? | | ?????????????????? ????# # "" "###### | | ????????????????????????#BB # "" """"""" | | ??????????????###+####+##BB # "" """"""" | | ??????????????# + | | ??????????????# +% | | ??????????????# % @ + | | ???? g + | | ??????#/#### ###BB # "" """"""" | | ?????? g ??#BB # "" """"""" | | ????? ????# # "" "###### | | ?????? ?????#### #######""#####??#?? | | ?????? ?????????# Y#????##""#???#???#? | | ??????###+######???????????# ?????#""##?????#?? | | ???????????????????????????+ ##????#""#????????? | | ???????????????????????????# #?????#""#?#??????? | | ???????????????????????????# #?????#""???#?????? | | ???????????????????????????# #?????????????#???? | | ????????????????????? ?????# ##????????????????? | | ???????????????????????????# #????????#?#?#?#??? | | ???????????????????????????# #???????#?????????? | | ???????????????????????????# #?#???????????????? | | ???????????????????????????# #?????????????????? | | ???????????????????????????# #?????????????????? | | ???????????????????????????# #?????????????????? | | ???????????????????????????# #?????????????????? | | ???????????????????????????? ??????????????????? | | ?????????????????????????????????????????????????? | | ?????????????????????????????????????????????????? | | ?????????????????????????????????????????????????? | | ?????????????????????????????????????????????????? | +----------------------------------------------------+ Best States ------------- Heat Dissipation 40 Energy Generation 18 Energy Capacity 1650 Matter Stores 300 Matter Capacity 300 Sight Range 22 Robot Scan Range 15 Terrain Scan Range 16 Terrain Scan Density 285 Additional Mass Support 9 Evasion (%) 74 Offensive Hacking 10 Relay Coupler Types 1 Relay Coupler Value 64 Item Schematics ----------------- None Robot Schematics ------------------ None Fabricated ------------ Nothing Alien Tech Used ----------------- None Achievements -------------- Deadly Force Error 47 It Was An Accident, I Swear Challenges ------------ None Game ------ Seed TransdimensionalCentriumRay Manual? 0 Play Time 00:57:39 Cumulative 105.6 hours Start 2022.04.24 @ 08:23:13 End 2022.04.24 @ 09:21:43 Sessions 1 Manual Loads 0 Difficulty Rogue Special Mode None Game No. 130 Rogue 130 Adventurer 0 Explorer 0 Win Type - Total 4 Types 4/0/0/0/0/0/0/0/0 Lore% 56 Gallery% 60 Achievement% 49 Wizard Run 0 Options --------- ASCII 1 Keyboard 1 Movement Numpad Keybinds 0 Fullscreen 1 Font 18/X11 Map View 76x50 Tactical HUD 1 Map Filters NONE Filters NONE Steam 1 RUN: 40991392-9ae2-4bab-acfd-4b20201f7042